bitfinex/quotes_ETHUSD_20240730
["timestamp","ask_amount","ask_price","bid_price","bid_amount"]
[1722298342431,3.93821191,3324.0,3323.1,2.40738]
[1722298342432,1.53156655,3323.9,3322.9,7.85082]
[1722298342644,2.40703,3323.6,3322.9,2.4433]
[1722298342934,4.25349636,3323.5,3322.4,2.4433]
[1722298343230,2.40724,3323.4,3322.6,2.40775]
[1722298343433,2.40724,3323.4,3321.9,2.4082]
[1722298343434,1.53182208,3323.3,3322.2,2.40797]
[1722298343723,1.68500429,3323.2,3322.3,0.06019392]
[1722298343946,2.48116272,3323.1,3322.4,2.40788]
[1722298344094,2.48116272,3323.1,3321.9,2.281]
[1722298344095,0.07376272,3323.1,3322.2,2.40801]
[1722298344393,2.40754,3322.9,3322.2,2.40801]
[1722298344928,0.07079824,3322.8,3322.2,2.40801]
[1722298345271,2.47840824,3322.8,3322.0,2.40818]
[1722298345480,2.39519824,3322.8,3321.7,2.40837]
[1722298345927,2.40787,3322.5,3321.8,2.40832]
[1722298346137,0.07066555,3322.4,3321.8,2.40832]
[1722298347233,0.07066555,3322.4,3322.0,2.40813]
[1722298347395,2.3244,3322.8,3321.8,2.40832]
[1722298347769,2.40776,3322.6,3321.8,2.40832]
[1722298348083,2.40776,3322.6,3321.7,3.0]
[1722298348281,2.40791,3322.4,3321.6,2.40847]
[1722298348724,2.47590848,3322.3,3321.6,2.40847]
[1722298349094,0.06793848,3322.3,3321.6,2.40847]
[1722298349296,2.40791,3322.4,3321.7,2.4084]
[1722298349607,0.06793848,3322.3,3321.7,2.4084]
[1722298350624,2.40795,3322.4,3321.7,2.4084]
[1722298350826,2.47599848,3322.2,3321.5,2.40854]
[1722298350979,2.40806,3322.2,3321.5,2.890262]
[1722298351312,0.06781842,3322.1,3321.5,2.890262]
[1722298351480,2.40818,3322.0,3321.3,2.40868]
[1722298351688,2.40826,3321.9,3321.2,3.0]
[1722298351879,2.40826,3321.9,3321.1,5.40883]
[1722298352113,2.47614246,3321.8,3321.2,0.787513]
[1722298352277,0.06779246,3321.8,3321.2,6.196273]
[1722298352478,2.40846,3321.7,3321.0,2.4663]
[1722298352781,0.0676302,3321.6,3321.0,4.8752]
[1722298353225,2.40826,3321.9,3321.1,2.40882]
[1722298353522,2.40834,3321.8,3321.1,2.40882]
[1722298353843,2.40834,3321.8,3320.8,2.40904]
[1722298353844,2.40848,3321.6,3320.5,2.3196]
[1722298354065,2.40869,3321.3,3320.5,4.72883]
[1722298354176,2.40869,3321.3,3320.5,2.40923]
[1722298354379,0.06747439,3321.2,3320.6,0.481857]
[1722298354990,0.06747439,3321.2,3320.6,0.54208024]
[1722298355194,2.40827,3321.9,3320.8,2.3196]
[1722298355390,2.471,3322.1,3321.3,2.40869]
[1722298355612,2.4082,3322.0,3321.1,2.46904489]
[1722298355782,2.40826,3321.9,3321.1,2.46904489]
[1722298356178,4.87915,3322.1,3321.1,0.06021489]
[1722298356426,4.87915,3322.1,3321.3,2.40868]
[1722298356427,2.896115,3322.0,3321.3,2.40868]
[1722298358448,2.40827,3321.9,3321.1,2.40883]
[1722298358731,2.40833,3321.8,3321.1,2.40883]
[1722298359124,2.40848,3321.6,3320.7,2.40912]
[1722298359326,2.40878,3321.2,3320.5,2.40921]
[1722298359500,2.4124,3321.4,3320.7,2.40908]
[1722298359707,2.4124,3321.4,3320.6,2.40919]
[1722298359906,2.4124,3321.4,3320.3,2.40935]
[1722298359907,2.894489,3321.4,3320.4,2.4093]
[1722298360107,2.894489,3321.4,3320.2,2.492]
[1722298360341,2.40882,3321.2,3320.5,2.40927]
[1722298360640,5.303109,3321.4,3320.4,2.40934]
[1722298360848,2.894489,3321.4,3320.4,2.40934]
[1722298361023,2.4089,3321.1,3320.4,2.40934]
[1722298361408,0.06489473,3321.0,3320.4,2.40934]
[1722298362211,2.47381473,3321.0,3320.2,4.90147]
[1722298362412,2.40906,3320.8,3320.1,2.40955]
[1722298362768,0.06489473,3321.0,3320.3,2.4094]
[1722298362769,0.06492401,3320.9,3320.3,2.4094]
[1722298362929,0.06492401,3320.9,3320.3,0.24094]
[1722298363127,7.37,3321.5,3320.5,2.40923]
[1722298363656,0.06483615,3321.4,3320.9,2.40898]
[1722298364364,0.06263264,3321.3,3320.9,2.40898]
[1722298364519,2.40831,3321.9,3321.1,2.40881]
[1722298364861,2.47101471,3321.8,3321.1,2.40881]
[1722298365056,2.4084,3321.7,3320.9,2.40898]
[1722298365222,2.47118558,3321.7,3320.9,2.890789]
[1722298365556,2.40855,3321.5,3320.9,2.890789]
[1722298365760,2.40855,3321.5,3320.9,0.481809]
[1722298365929,0.06284739,3321.4,3320.8,2.40904]
[1722298366969,2.47146739,3321.4,3320.6,5.40919]
[1722298367172,2.40891,3321.0,3320.1,2.2994]
[1722298367360,2.40913,3320.7,3319.8,2.40976]
[1722298367530,2.40913,3320.7,3319.9,0.240976]
[1722298368066,4.82637167,3320.6,3319.8,2.40976]
[1722298368370,2.41712167,3320.6,3320.0,2.40963]
[1722298368524,4.82632167,3320.6,3319.6,2.40991]
[1722298368730,4.82632167,3320.6,3319.2,2.2994]
[1722298368731,3.548,3320.5,3319.4,2.41005]
[1722298369047,2.40957,3320.1,3319.4,2.41005]
[1722298369266,2.40942,3320.3,3319.5,2.40999]
[1722298369455,0.05835652,3320.0,3319.5,2.40999]
[1722298369651,2.40936,3320.4,3319.5,2.40999]
[1722298369993,2.40964,3320.0,3319.3,2.41008]
[1722298370573,0.05814452,3319.9,3319.3,2.41008]
[1722298371479,0.05814452,3319.9,3318.8,5.475]
[1722298371665,0.05814452,3319.9,3319.8,4.81956]
[1722298371865,11.39272,3321.0,3320.2,2.40947]
[1722298371866,8.39272,3321.0,3320.2,2.40947]
[1722298372081,2.40907,3320.8,3320.0,2.40963]
[1722298372600,8.39271,3321.0,3320.1,2.40956]
[1722298372769,8.39271,3321.0,3320.2,2.40948]
[1722298373299,9.772859,3321.0,3320.2,2.40948]
[1722298373461,7.363949,3321.0,3320.0,2.40962]
[1722298373657,2.40899,3320.9,3320.1,2.40955]
[1722298373885,2.40899,3320.9,3320.2,2.40948]
[1722298374085,2.40899,3320.9,3320.1,2.40955]
[1722298374306,9.772889,3321.0,3320.2,2.40948]
[1722298374499,9.772889,3321.0,3320.3,2.4094]
[1722298374706,2.4358,3321.0,3320.2,2.40943]
[1722298375873,2.4358,3321.0,3320.4,2.40933]
[1722298376077,0.05261821,3320.9,3320.4,2.40933]
[1722298376271,0.05261821,3320.9,3320.2,2.40943]
[1722298376578,0.05261821,3320.9,3320.3,0.06023258]
[1722298376775,8.37262,3321.4,3320.6,2.40914]
[1722298376977,0.05265427,3321.3,3320.4,2.40934]
[1722298377325,0.05265427,3321.3,3320.3,2.4094]
[1722298377617,2.40895,3321.0,3320.3,2.4094]
[1722298377944,6.22167827,3321.4,3320.4,2.40934]
[1722298377945,8.63031827,3321.4,3320.4,2.40934]
[1722298378075,0.04917885,3320.9,3320.4,2.40934]
[1722298378418,8.63031827,3321.4,3320.4,2.891223]
[1722298378587,0.04921492,3320.8,3320.4,0.481883]
[1722298378774,6.22167827,3321.4,3320.4,0.481883]
[1722298378775,5.14356827,3321.4,3320.4,0.481883]
[1722298378974,0.04921492,3321.3,3320.4,0.481883]
[1722298379378,0.9278917,3323.3,3320.4,0.481883]
[1722298379379,2.40819,3322.0,3321.3,2.40868]
[1722298379585,0.04756705,3321.9,3321.3,2.40868]
[1722298379918,0.04756705,3321.9,3321.5,2.40852]
[1722298380221,2.4461,3322.2,3321.5,2.40852]
[1722298380524,0.04756705,3321.8,3321.7,2.4084]
[1722298380737,2.40785,3322.5,3321.8,2.40826]
[1722298380901,0.240785,3322.4,3321.8,2.40826]
[1722298381595,0.240785,3322.4,3322.0,2.40811]
[1722298381821,5.57846,3323.0,3322.3,2.40795]
[1722298382051,2.40753,3322.9,3322.2,2.40803]
[1722298383638,2.40761,3322.8,3321.8,2.40831]
[1722298383848,2.40795,3322.4,3321.7,2.40839]
[1722298384139,2.40776,3322.6,3321.8,2.40831]
[1722298384351,0.240761,3322.7,3321.6,0.06020405]
[1722298384659,2.40746,3323.0,3322.1,2.40806]
[1722298384969,3.0,3323.0,3321.9,2.40823]
[1722298385175,2.4078,3322.6,3321.7,2.40838]
[1722298385303,2.40761,3322.8,3321.5,5.40853]
[1722298385304,2.40761,3322.8,3321.6,0.06020294]
[1722298385504,2.40761,3322.8,3322.0,2.40813]
[1722298385505,0.04843339,3322.5,3322.0,2.40813]
[1722298385768,0.2455643,3322.7,3322.0,2.40813]
[1722298385912,0.04842355,3322.4,3322.0,2.40813]
[1722298386111,0.2455643,3322.7,3322.0,2.40813]
[1722298386309,0.26531743,3322.6,3322.0,2.40813]
[1722298386622,0.31374426,3322.6,3322.0,2.40813]
[1722298387552,0.31374426,3322.6,3321.5,3.0]
[1722298387553,0.31374426,3322.6,3321.6,2.40846]
[1722298387768,2.40787,3322.5,3321.6,2.40846]
[1722298387923,4.85377,3322.5,3321.6,2.40846]
[1722298388105,0.04845307,3322.4,3321.6,2.40846]
[1722298388310,0.04845307,3322.4,3321.7,2.40838]
[1722298388849,0.04845307,3322.4,3321.3,2.40867]
[1722298388850,3.59645307,3322.4,3321.3,2.40867]
[1722298389052,2.4082,3322.0,3321.0,2.40886]
[1722298389312,2.4084,3321.8,3321.0,2.40886]
[1722298389508,2.40841,3321.7,3321.0,2.40886]
[1722298389792,2.45681059,3321.7,3320.6,2.40914]
[1722298390007,2.45681059,3321.7,3320.8,2.40905]
[1722298390008,2.40855,3321.5,3320.8,2.40905]
[1722298390496,2.45694529,3321.4,3320.8,2.40905]
[1722298390718,2.45694529,3321.4,3320.6,2.4092]
[1722298391206,2.4087,3321.3,3320.6,2.4092]
[1722298391547,0.04805938,3321.2,3320.7,2.40913]
[1722298391785,0.04805938,3321.2,3320.5,5.40923]
[1722298392060,0.04805938,3321.2,3320.5,5.40926]
[1722298392292,0.04805938,3321.2,3320.5,2.40926]
[1722298392495,2.40863,3321.4,3320.6,2.40916]
[1722298392667,0.04788875,3321.1,3320.7,2.40912]
[1722298392884,0.240863,3321.3,3320.7,2.40912]
[1722298393118,0.04788875,3321.0,3320.2,3.0]
[1722298393277,0.04788875,3321.0,3320.9,2.40898]
[1722298393478,10.02415106,3321.6,3320.9,2.40898]
[1722298393818,0.04789858,3321.0,3320.9,2.40898]
[1722298394029,7.61568106,3321.6,3321.0,2.40888]
[1722298394176,2.52454711,3321.5,3321.0,2.40888]
[1722298394518,0.99187811,3321.5,3321.1,2.40882]
[1722298394729,0.99187811,3321.5,3320.9,2.40894]
[1722298394893,1.53274221,3321.4,3320.7,2.40909]
[1722298395089,2.66118203,3321.3,3320.6,2.40919]
[1722298395775,2.66118203,3321.3,3320.9,2.40895]
[1722298395776,0.25246203,3321.3,3320.9,2.40895]
[1722298396026,3.40042811,3321.5,3320.9,2.40895]
[1722298396316,3.94133356,3321.4,3320.7,2.40908]
[1722298396514,1.53270356,3321.3,3320.7,2.40908]
[1722298396887,2.40878,3321.2,3320.6,2.4092]
[1722298397220,1.53270356,3321.1,3320.6,2.4092]
[1722298397418,1.53270356,3321.0,3320.3,2.4094]
[1722298397576,5.77433956,3321.4,3320.3,2.4094]
[1722298397782,3.94161139,3321.3,3320.5,2.40921]
[1722298398003,2.50447649,3321.2,3320.5,2.40921]
[1722298398314,1.53288139,3321.1,3320.5,2.40921]
[1722298398714,3.94172139,3321.1,3320.4,2.40933]
[1722298398917,1.53288139,3321.0,3320.4,2.40933]
[1722298399327,2.40899,3320.9,3320.2,2.40948]
[1722298399531,1.90268872,3320.8,3320.2,2.40948]
[1722298399710,0.36980733,3320.8,3320.2,2.40948]
[1722298401202,0.36980733,3320.8,3320.0,2.40962]
[1722298401398,2.4092,3320.6,3320.0,2.40962]
[1722298403339,0.36980733,3320.8,3319.7,2.2763]
[1722298403488,4.48326039,3321.1,3320.3,2.40941]
[1722298403693,3.94190638,3321.0,3320.3,2.40941]
[1722298403894,1.53294638,3320.9,3320.3,2.40941]
[1722298404219,1.24701385,3321.3,3319.8,0.22763]
[1722298404220,8.55094145,3321.6,3320.4,0.06023454]
[1722298404441,1.53270796,3321.5,3320.7,2.4091]
[1722298404658,1.53270796,3321.5,3321.1,2.40877]
[1722298405147,0.93526039,3321.8,3321.1,2.40882]
[1722298405342,1.86695742,3321.7,3321.1,2.40882]
[1722298405658,1.53260138,3321.6,3321.1,2.40882]
[1722298405857,0.33435604,3321.7,3321.1,2.40882]
[1722298406059,0.04599834,3321.5,3320.9,2.40898]
[1722298406359,2.40863,3321.4,3320.8,2.40904]
[1722298406541,0.04599834,3321.4,3320.8,2.409]
[1722298406748,2.40855,3321.5,3320.8,2.409]
[1722298406983,0.04599834,3321.3,3320.4,2.40932]
[1722298407177,1.53265255,3321.2,3320.5,2.40923]
[1722298407409,0.04599834,3321.2,3320.5,2.40926]
[1722298407668,0.04599834,3321.2,3319.9,4.74621]
[1722298407669,2.77642341,3321.5,3320.8,2.40905]
[1722298407875,0.04599834,3321.1,3320.6,2.40919]
[1722298408195,2.66369423,3321.4,3320.7,2.40908]
[1722298408367,0.04599834,3321.0,3320.7,2.40908]
[1722298408542,2.66369423,3321.4,3320.7,2.40908]
[1722298408543,2.40862,3321.4,3320.7,2.40908]
[1722298408861,2.40878,3321.2,3320.5,2.40922]
[1722298409063,1.57872524,3321.1,3320.5,2.40922]
[1722298409264,1.5327269,3321.0,3320.5,2.40922]
[1722298409471,2.40884,3321.1,3320.5,2.40922]
[1722298409671,2.40895,3321.0,3320.3,2.40939]
[1722298410046,0.04599834,3320.9,3320.3,2.40939]
[1722298410236,0.04599834,3320.9,3320.0,5.40962]
[1722298410436,2.40913,3320.7,3320.1,2.40956]
[1722298410661,0.04594244,3320.6,3320.1,2.40956]
[1722298411177,0.04594244,3320.6,3320.2,2.40948]
[1722298411685,2.40902,3320.9,3320.1,2.40952]
[1722298411686,0.04594244,3320.5,3320.1,2.40952]
[1722298411892,0.04594244,3320.5,3320.2,2.40947]
[1722298412098,2.40907,3320.8,3320.2,2.40947]
[1722298412261,0.04594244,3320.4,3320.0,2.40963]
[1722298412591,2.40929,3320.5,3319.9,3.0]
[1722298412883,2.40929,3320.5,3319.8,2.40977]
[1722298413287,2.45536792,3320.4,3319.7,3.0]
[1722298413579,2.45536792,3320.4,3319.6,3.0]
[1722298413742,0.24553679,3320.3,3319.4,2.41006]
[1722298413939,2.40957,3320.1,3319.4,2.41006]
[1722298414145,2.3483,3320.2,3319.2,3.0]
[1722298414146,2.39424244,3320.2,3319.2,3.0]
[1722298414438,2.4097,3320.0,3319.1,2.41027]
[1722298414643,3.26906222,3320.0,3319.1,2.41027]
[1722298414847,0.04570568,3319.9,3319.1,2.41027]
[1722298415347,0.04570568,3319.9,3319.3,2.41014]
[1722298415864,0.04570568,3319.9,3318.2,3.91094]
[1722298415865,1.53349341,3319.8,3318.3,2.4828]
[1722298416065,2.45551964,3319.7,3318.4,2.41079]
[1722298416279,5.63997438,3319.6,3318.4,2.41079]
[1722298416491,1.53349341,3319.5,3318.4,2.41079]
[1722298416670,2.41023,3319.2,3318.4,2.41079]
[1722298416869,0.04554779,3319.1,3318.5,2.41072]
[1722298417578,7.52791991,3319.7,3318.8,2.41047]
[1722298417765,0.04554779,3319.0,3318.9,2.41043]
[1722298418091,7.37,3319.7,3319.1,2.41029]
[1722298418284,7.37,3319.7,3319.2,2.41016]
[1722298418581,0.85940222,3320.0,3319.2,2.41016]
[1722298418582,2.40972,3319.9,3319.2,2.41016]
[1722298418788,2.40972,3319.9,3319.1,2.41028]
[1722298419086,2.97758822,3319.9,3319.1,2.41028]
[1722298420382,2.97758822,3319.9,3319.2,2.4102]
[1722298420980,0.56786822,3319.9,3319.2,2.41019]
[1722298421308,0.04513333,3319.8,3319.2,2.41019]
[1722298422331,0.04513333,3319.8,3319.0,2.41035]
[1722298422518,0.30227316,3319.7,3319.0,2.41035]
[1722298422679,0.30227316,3319.7,3319.1,2.41029]
[1722298422884,0.04524193,3319.6,3319.1,2.41029]
[1722298423624,0.04524193,3319.6,3318.8,2.41049]
[1722298423786,0.59524193,3319.6,3318.8,2.41049]
[1722298424124,2.41002,3319.5,3318.8,2.41049]
[1722298424724,0.04524193,3319.4,3318.8,2.41049]
[1722298425391,0.29076812,3319.4,3318.8,2.41049]
[1722298426282,0.29076812,3319.4,3318.6,2.41064]
[1722298426483,2.45532193,3319.4,3318.6,5.41064]
[1722298426720,2.45532193,3319.4,3318.7,2.41058]
[1722298426916,0.04524193,3319.4,3318.8,2.4105]
[1722298427329,2.41001,3319.5,3318.8,2.4105]
[1722298427537,0.04524193,3319.3,3318.8,2.4105]
[1722298427749,2.41007,3319.4,3318.8,2.4105]
[1722298427949,2.3297,3318.6,3317.8,2.41118]
[1722298428118,4.74036,3318.6,3317.8,2.41118]
[1722298428312,5.12779452,3318.5,3317.7,2.4113]
[1722298428514,2.71704452,3318.5,3317.9,2.41115]
[1722298428717,5.12776452,3318.5,3317.9,2.41115]
[1722298429605,2.45576452,3318.5,3317.9,2.41115]
[1722298430157,2.45576452,3318.5,3317.6,2.41136]
[1722298430158,0.47854645,3318.4,3317.6,2.41135]
[1722298430301,3.43935645,3318.4,3317.3,3.0]
[1722298430656,2.41108,3318.1,3317.3,2.41159]
[1722298431100,0.04478448,3318.0,3317.1,2.41172]
[1722298431416,2.41124,3317.8,3317.1,2.41172]
[1722298431806,0.04448826,3317.7,3317.1,2.41172]
[1722298432555,0.04448826,3317.7,3317.2,2.41166]
[1722298433035,2.41109,3318.0,3317.2,2.41166]
[1722298433234,0.04448826,3317.6,3317.2,2.41166]
[1722298433440,0.77396264,3318.0,3317.2,2.41166]
[1722298433739,0.04448826,3317.9,3317.2,2.41166]
[1722298434556,2.41123,3317.8,3317.0,2.41178]
[1722298435220,0.04448826,3317.7,3317.0,2.41178]
[1722298435430,0.04448826,3317.7,3317.0,3.141765]
[1722298436922,0.04448826,3317.7,3317.1,2.41173]
[1722298437153,3.18506264,3318.0,3317.1,2.41173]
[1722298437358,0.04448826,3317.6,3317.2,2.41165]
[1722298437536,2.41117,3317.9,3317.2,2.41165]
[1722298437746,0.04448826,3317.5,3317.2,2.41165]
[1722298438059,0.04448826,3317.4,3317.2,2.41165]
[1722298438305,2.41117,3317.9,3317.2,2.41165]
[1722298438633,5.32861645,3318.1,3317.2,2.41165]
[1722298438956,5.32861645,3318.1,3317.3,2.41159]
[1722298438957,0.04448826,3318.0,3317.3,2.41159]
[1722298439356,0.04448826,3318.0,3317.3,2.652749]
[1722298439742,2.45563826,3318.0,3317.3,0.241159]
[1722298439969,0.04448826,3318.0,3317.3,2.41157]
[1722298440136,0.04448826,3318.0,3317.4,2.41149]
[1722298440470,0.04448826,3318.0,3317.4,2.41152]
[1722298441144,2.41122,3317.9,3317.1,2.41173]
[1722298441671,0.04413266,3317.8,3316.8,2.4762]
[1722298441870,2.672,3318.1,3316.8,3.02382]
[1722298442068,2.672,3318.1,3316.8,2.4762]
[1722298442069,0.04413266,3318.0,3316.8,2.4762]
[1722298443334,2.4403,3317.9,3316.8,2.3764]
[1722298444086,0.04413266,3317.8,3316.8,2.3764]
[1722298448750,0.04413266,3317.8,3316.4,2.2937]
[1722298451199,2.672,3317.3,3315.3,1.5]
[1722298451400,2.672,3316.9,3315.4,2.3187]
[1722298451662,2.4058,3316.8,3315.4,2.3187]
[1722298451886,2.672,3316.5,3314.8,2.3187]
[1722298452205,0.55,3316.4,3314.8,2.3187]
[1722298452501,0.3222,3316.3,3314.9,0.23187]
[1722298452863,0.04347051,3316.2,3314.9,0.23187]
[1722298453059,0.04347051,3316.2,3314.9,3.23187]
[1722298453815,0.04347051,3316.2,3315.0,0.06032262]
[1722298453975,0.04347051,3316.2,3315.1,0.32921926]
[1722298454167,0.04347051,3316.2,3315.2,0.0603169]
[1722298454400,5.5768,3316.8,3315.2,0.0603169]
[1722298454614,5.5768,3316.8,3315.1,0.32921926]
[1722298454615,0.04298271,3316.1,3315.1,0.32921926]
[1722298454784,0.55,3316.7,3315.1,0.32921926]
[1722298454984,3.171,3316.5,3314.9,3.23187]
[1722298455206,2.285,3316.3,3314.2,4.172]
[1722298455414,2.285,3316.3,3314.3,2.2944]
[1722298455415,5.456,3316.3,3314.3,2.2944]
[1722298455581,0.55,3316.2,3314.3,2.2944]
[1722298455784,0.5929959,3316.2,3314.3,2.2944]
[1722298455994,0.60489959,3316.1,3314.4,0.64664]
[1722298456469,0.0429959,3316.0,3314.4,0.64664]
[1722298456672,0.0429959,3316.0,3314.4,3.64664]
[1722298457505,0.5929959,3316.0,3314.4,3.64664]
[1722298457685,0.43688955,3315.9,3314.5,0.594104]
[1722298458102,0.0429959,3315.8,3314.5,0.594104]
[1722298458413,0.0429959,3315.8,3314.6,0.06033086]
[1722298458718,2.285,3316.3,3314.6,0.06033086]
[1722298458925,0.04269913,3315.7,3314.8,2.672]
[1722298459134,7.37,3316.5,3315.0,2.3023]
[1722298459330,0.04269913,3315.6,3315.0,2.3023]
[1722298459484,7.37,3316.3,3315.1,0.06031514]
[1722298459676,0.04269913,3316.2,3315.0,2.3023]
[1722298459893,2.3932,3316.7,3315.0,2.3023]
[1722298460112,1.01901913,3316.6,3315.1,0.61726506]
[1722298460415,1.01901913,3316.6,3315.1,3.61726506]
[1722298460593,1.01901913,3316.6,3315.1,0.61726506]
[1722298460795,1.01901913,3316.6,3315.1,3.61726506]
[1722298460991,0.04269913,3316.6,3315.2,2.73231501]
[1722298461191,0.04269913,3316.6,3315.6,2.672]
[1722298461674,0.04269913,3316.6,3315.7,3.0]
[1722298461880,7.37,3316.8,3315.4,0.06031031]
[1722298462117,0.04281454,3316.7,3315.4,0.06031031]
[1722298462322,0.78409599,3316.7,3315.5,0.30603103]
[1722298462525,0.04281454,3316.7,3315.6,0.06031229]
[1722298462740,0.04281454,3316.7,3315.5,0.30603103]
[1722298463315,0.04281454,3316.7,3315.6,0.06030846]
[1722298463519,0.04281454,3316.7,3315.7,0.06030446]
[1722298463816,0.04281454,3316.7,3316.0,2.672]
[1722298464117,0.04328264,3316.6,3316.5,4.82436]
[1722298464290,0.04328264,3316.6,3316.5,10.29683946]
[1722298464492,2.2856,3317.6,3317.4,2.4115]
[1722298464714,0.04185598,3317.5,3317.2,2.41164]
[1722298464883,2.41121,3317.9,3317.2,2.41164]
[1722298465090,0.51351033,3317.8,3317.5,2.41139]
[1722298465287,0.04191201,3317.8,3317.5,2.41139]
[1722298465528,2.30477317,3318.0,3317.5,2.41139]
[1722298465733,0.04203064,3317.7,3317.5,2.41139]
[1722298465940,2.30477317,3318.0,3317.6,2.41138]
[1722298466232,0.96747732,3317.9,3317.6,2.41138]
[1722298466634,0.00307317,3318.0,3317.6,2.41138]
[1722298467420,0.00307317,3318.0,3317.5,2.41145]
[1722298468400,2.41125,3317.8,3317.0,3.0]
[1722298468628,2.41125,3317.8,3315.9,3.91256]
[1722298468629,3.171,3317.7,3316.4,2.41224]
[1722298468835,3.7553,3317.6,3316.7,2.41203]
[1722298469175,2.41153,3317.4,3316.6,2.41209]
[1722298469955,2.41146,3317.5,3316.8,2.41194]
[1722298470249,0.55,3317.4,3316.8,2.41194]
[1722298471464,2.41146,3317.5,3316.7,2.41199]
[1722298471682,0.299576,3317.4,3316.5,5.41215]
[1722298471835,2.2595,3317.0,3316.2,2.41239]
[1722298472655,2.2595,3317.0,3316.3,2.41225]
[1722298472931,4.67133,3317.0,3316.3,2.41225]
[1722298473242,5.4305,3317.0,3315.6,2.41283]
[1722298473566,5.4305,3317.0,3316.0,2.41254]
[1722298473567,2.4121,3316.7,3316.0,2.41254]
[1722298473730,2.41211,3316.6,3315.8,2.41265]
[1722298473933,2.41207,3316.7,3315.8,2.41263]
[1722298474176,2.41207,3316.7,3315.6,2.41281]
[1722298474177,2.41223,3316.5,3315.6,2.41281]
[1722298474465,2.56740656,3316.6,3315.6,2.41281]
[1722298474466,0.482404,3316.6,3315.6,2.41282]
[1722298474673,2.894524,3316.6,3315.9,2.41259]
[1722298474972,6.67595,3316.9,3316.0,2.41254]
[1722298474973,2.412,3316.8,3316.0,2.41254]
[1722298475177,2.08501884,3316.7,3315.8,2.41268]
[1722298475343,3.94713495,3316.6,3315.9,2.41261]
[1722298475667,0.3947135,3316.5,3315.9,2.41261]
[1722298475872,0.3947135,3316.5,3316.0,2.41252]
[1722298476455,6.67597,3316.9,3316.0,2.41252]
[1722298476656,1.53498481,3316.8,3316.0,2.41252]
[1722298476857,0.55,3316.7,3316.0,2.41252]
[1722298477377,2.96199,3316.8,3316.0,2.41252]
[1722298477555,3.9470351,3316.7,3315.8,2.41267]
[1722298477752,4.39679861,3316.6,3315.8,2.41267]
[1722298477963,2.41226,3316.4,3315.4,2.41298]
[1722298478177,2.41248,3316.1,3315.4,2.41298]
[1722298479393,2.41255,3316.0,3315.2,2.41311]
[1722298479905,2.41255,3316.0,3315.3,2.41304]
[1722298480198,0.467205,3315.9,3315.3,2.41304]
[1722298481114,0.467205,3315.9,3314.7,2.4281]
[1722298481258,0.04145712,3315.8,3315.7,2.41276]
[1722298481453,0.04145712,3315.8,3315.7,4.82552]
[1722298481654,7.37,3316.3,3315.5,2.41288]
[1722298481856,7.37,3316.3,3316.1,2.41246]
[1722298482190,0.04132852,3316.2,3316.1,2.41246]
[1722298482490,7.37,3316.3,3316.1,2.41246]
[1722298482692,0.04132852,3316.2,3316.1,2.41246]
[1722298482895,7.37,3316.3,3315.9,2.4126]
[1722298483059,0.04138459,3316.2,3315.9,2.4126]
[1722298483589,7.37,3316.3,3316.0,2.41254]
[1722298483590,0.04138459,3316.1,3316.0,2.41254]
[1722298483998,7.37,3316.3,3316.0,2.41254]
[1722298484294,7.37,3316.3,3316.1,2.41242]
[1722298484460,0.0414901,3316.2,3316.1,2.41242]
[1722298484653,7.37,3316.3,3316.1,2.41242]
[1722298484857,0.04149999,3316.2,3316.1,2.41242]
[1722298485083,7.37,3316.3,3316.1,2.41242]
[1722298485283,7.37,3316.3,3316.2,2.41239]
[1722298485659,2.3026,3316.6,3316.2,2.41239]
[1722298485857,2.3026,3316.6,3315.5,0.06031292]
[1722298486054,2.3026,3316.6,3315.7,2.41272]
[1722298486798,2.3026,3316.6,3316.0,2.41254]
[1722298486993,8.84593016,3316.9,3315.6,0.24732529]
[1722298487191,7.91305,3316.9,3315.8,0.06031363]
[1722298487398,7.91305,3316.9,3316.2,2.41233]
[1722298487582,0.54305,3316.9,3316.2,2.41233]
[1722298487759,3.54305,3316.9,3316.2,2.41233]
[1722298488610,4.47593016,3316.9,3316.0,2.41254]
[1722298488810,2.766315,3316.8,3316.0,2.41254]
[1722298490327,2.766315,3316.8,3316.1,2.41247]
[1722298490538,3.69919516,3316.8,3316.1,2.41247]
[1722298490730,2.766315,3316.8,3316.1,2.41247]
[1722298491034,0.42422452,3316.7,3316.1,2.41247]
[1722298491232,1.28718516,3316.8,3316.2,2.41238]
[1722298491529,0.354305,3316.8,3316.3,2.41232]
[1722298492116,0.354305,3316.8,3316.1,2.41242]
[1722298492432,2.766265,3316.8,3316.1,2.41242]
[1722298493018,0.354305,3316.8,3316.2,2.41239]
[1722298493330,0.18302352,3316.7,3316.2,2.41239]
[1722298493893,0.93288016,3316.8,3315.9,0.06031007]
[1722298494093,0.93288016,3317.1,3316.3,2.2781]
[1722298494291,8.61384022,3317.3,3316.6,2.41205]
[1722298494292,7.37,3317.3,3316.6,2.41205]
[1722298494531,7.37,3317.3,3317.2,2.41167]
[1722298494716,7.37,3317.3,3317.1,2.41169]
[1722298494717,12.17,3317.8,3317.1,2.41169]
[1722298494927,14.45019802,3317.8,3317.4,2.41152]
[1722298495236,2.28019802,3317.8,3316.8,0.06029215]
[1722298495392,8.61384022,3318.2,3317.6,2.41137]
[1722298495393,0.93288016,3318.1,3317.6,2.41137]
[1722298495599,8.30288016,3318.2,3317.0,0.0602856]
[1722298495932,7.37,3318.2,3317.8,2.41123]
[1722298496148,0.0404968,3318.1,3317.6,2.41137]
[1722298496305,0.74104968,3318.0,3317.6,2.41137]
[1722298496508,0.04081026,3317.9,3317.8,2.41122]
[1722298496711,7.37,3318.2,3317.6,2.41133]
[1722298497039,0.04081026,3318.1,3317.6,2.41133]
[1722298498751,0.04081026,3318.1,3317.3,2.47186382]
[1722298499818,0.04081026,3318.1,3317.7,2.41123]